fUST/lending_fUST_20240804
["ID","MTS","AMOUNT","RATE_DAILY","PERIOD"]
[334109346,1722775841149,-500.0,0.00015467,2]
[334109347,1722775841159,-500.0,0.00015467,2]
[334109348,1722775841171,-500.0,0.00015467,2]
[334109349,1722775841182,-500.0,0.00015467,2]
[334109350,1722775841194,-500.0,0.00015467,2]
[334109351,1722775841209,-500.0,0.00015467,2]
[334109352,1722775841221,-500.0,0.00015467,2]
[334109353,1722775841235,-500.0,0.00015467,2]
[334109354,1722775841249,-500.0,0.00015467,2]
[334109355,1722775841263,-500.0,0.00015467,2]
[334109356,1722775841277,-500.0,0.00015467,2]
[334109357,1722775841290,-500.0,0.00015467,2]
[334109358,1722775841303,-500.0,0.00015467,2]
[334109359,1722775841316,-500.0,0.00015467,2]
[334109360,1722775841328,-500.0,0.00015467,2]
[334109361,1722775841340,-500.0,0.00015467,2]
[334109362,1722775841353,-500.0,0.00015467,2]
[334109363,1722775841363,-500.0,0.00015467,2]
[334109364,1722775841375,-500.0,0.00015467,2]
[334109365,1722775841387,-500.0,0.00015467,2]
[334109366,1722775841398,-1370.95,0.00015467,2]
[334109367,1722775841412,-500.0,0.00015467,2]
[334109368,1722775841423,-500.0,0.00015467,2]
[334109369,1722775841434,-500.0,0.00015467,2]
[334109370,1722775841446,-500.0,0.00015467,2]
[334109371,1722775841457,-303.59071256,0.00015467,2]
[334109372,1722775841467,-500.0,0.00015467,2]
[334109373,1722775841481,-500.0,0.00015467,2]
[334109374,1722775841493,-500.0,0.00015467,2]
[334109375,1722775841504,-500.0,0.00015467,2]
[334109376,1722775841514,-500.0,0.00015467,2]
[334109377,1722775841525,-500.0,0.00015467,2]
[334109378,1722775841536,-522.62450621,0.00015467,2]
[334109379,1722775841549,-500.0,0.00015467,2]
[334109380,1722775841563,-500.0,0.00015467,2]
[334109381,1722775841574,-500.0,0.00015467,2]
[334109382,1722775841587,-500.0,0.00015467,2]
[334109383,1722775841597,-500.0,0.00015467,2]
[334109384,1722775841607,-500.0,0.00015467,2]
[334109385,1722775841618,-500.0,0.00015467,2]
[334109386,1722775841629,-500.0,0.00015467,2]
[334109387,1722775841642,-500.0,0.00015467,2]
[334109388,1722775841654,-500.0,0.00015467,2]
[334109389,1722775841666,-500.0,0.00015467,2]
[334109390,1722775841681,-522.27,0.00015467,2]
[334109391,1722775841693,-500.0,0.00015467,2]
[334109392,1722775841705,-500.0,0.00015467,2]
[334109393,1722775841715,-1256.01,0.00015467,2]
[334109394,1722775841726,-500.0,0.00015467,2]
[334109395,1722775841736,-500.0,0.00015467,2]
[334109396,1722775841750,-500.0,0.00015467,2]
[334109397,1722775841762,-500.0,0.00015467,2]
[334109398,1722775841772,-500.0,0.00015467,2]
[334109399,1722775841783,-500.0,0.00015467,2]
[334109400,1722775841794,-500.0,0.00015467,2]
[334109401,1722775841805,-500.0,0.00015467,2]
[334109402,1722775841816,-500.0,0.00015467,2]
[334109403,1722775841826,-500.0,0.00015467,2]
[334109404,1722775841837,-2648.39,0.00015467,2]
[334109405,1722775841848,-500.0,0.00015467,2]
[334109406,1722775841858,-500.0,0.00015467,2]
[334109407,1722775841869,-601.11674074,0.00015467,2]
[334109408,1722775841880,-824.71,0.00015467,2]
[334109409,1722775841891,-500.0,0.00015468,2]
[334109410,1722775841901,-500.0,0.00015468,2]
[334109411,1722775841911,-500.0,0.00015468,2]
[334109412,1722775841924,-812.14,0.00015468,2]
[334109413,1722775841934,-500.0,0.00015468,2]
[334109414,1722775841944,-500.0,0.00015468,2]
[334109415,1722775841955,-500.0,0.00015468,2]
[334109416,1722775841965,-500.0,0.00015468,2]
[334109417,1722775841976,-3707.12,0.00015468,2]
[334109418,1722775841987,-500.0,0.00015468,2]
[334109419,1722775842000,-500.0,0.00015468,2]
[334109420,1722775842010,-867.78,0.00015468,2]
[334109421,1722775842021,-500.0,0.00015468,2]
[334109422,1722775842031,-500.0,0.00015468,2]
[334109423,1722775842041,-500.0,0.00015468,2]
[334109424,1722775842052,-1395.77,0.00015468,2]
[334109425,1722775842063,-500.0,0.00015468,2]
[334109426,1722775842073,-500.0,0.00015468,2]
[334109427,1722775842084,-500.0,0.00015468,2]
[334109428,1722775842095,-500.0,0.00015468,2]
[334109429,1722775842106,-500.0,0.00015468,2]
[334109430,1722775842116,-500.0,0.00015468,2]
[334109431,1722775842127,-500.0,0.00015468,2]
[334109432,1722775842137,-500.0,0.00015468,2]
[334109433,1722775842148,-500.0,0.00015468,2]
[334109434,1722775842159,-510.23796948,0.00015468,2]
[334109435,1722775842170,-500.0,0.00015468,2]
[334109436,1722775842180,-500.0,0.00015468,2]
[334109437,1722775842191,-599.68,0.00015468,2]
[334109438,1722775842202,-500.0,0.00015468,2]
[334109439,1722775842212,-291.40645808,0.00015468,2]
[334109440,1722775842346,-500.0,0.00015468,2]
[334109441,1722775842365,-500.0,0.00015468,2]
[334109442,1722775842375,-500.0,0.00015468,2]
[334109443,1722775842386,-500.0,0.00015468,2]
[334109444,1722775842397,-500.0,0.00015468,2]
[334109445,1722775842407,-500.0,0.00015468,2]
[334109446,1722775842419,-500.0,0.00015468,2]
[334109447,1722775842431,-532.79055912,0.00015468,2]
[334109448,1722775842442,-500.0,0.00015468,2]
[334109449,1722775842454,-500.0,0.00015468,2]
[334109450,1722775842463,-500.0,0.00015469,2]
[334109451,1722775842475,-506.43463454,0.00015469,2]
[334109452,1722775842485,-500.0,0.00015469,2]
[334109453,1722775842497,-226.31575498,0.00015469,2]
[334109454,1722775842507,-501.81596992,0.00015469,2]
[334109455,1722775842517,-506.0252108,0.00015469,2]
[334109456,1722775842526,-511.06721115,0.00015469,2]
[334109457,1722775842536,-528.8046099,0.00015469,2]
[334109458,1722775842545,-500.0,0.00015469,2]
[334109459,1722775842556,-500.0,0.00015469,2]
[334109460,1722775842565,-500.0,0.00015469,2]
[334109461,1722775842574,-500.0,0.00015469,2]
[334109462,1722775842584,-500.0,0.00015469,2]
[334109463,1722775842593,-500.0,0.00015469,2]
[334109464,1722775842602,-500.0,0.00015469,2]
[334109465,1722775842611,-509.02547828,0.00015469,2]
[334109466,1722775842621,-500.0,0.00015469,2]
[334109467,1722775842630,-500.0,0.00015469,2]
[334109468,1722775842640,-500.0,0.00015469,2]
[334109469,1722775842649,-500.0,0.00015469,2]
[334109470,1722775842659,-500.0,0.00015469,2]
[334109471,1722775842673,-226.45757065,0.00015469,2]
[334109472,1722775842682,-503.67083284,0.00015469,2]
[334109473,1722775842695,-500.0,0.00015469,2]
[334109474,1722775842705,-500.0,0.00015469,2]
[334109475,1722775842715,-500.0,0.00015469,2]
[334109476,1722775842724,-500.0,0.00015469,2]
[334109477,1722775842734,-500.0,0.00015469,2]
[334109478,1722775842745,-500.0,0.00015469,2]
[334109479,1722775842756,-500.0,0.00015469,2]
[334109480,1722775842765,-500.0,0.00015469,2]
[334109481,1722775842774,-500.0,0.00015469,2]
[334109482,1722775842784,-500.0,0.00015469,2]
[334109483,1722775842793,-500.0,0.00015469,2]
[334109484,1722775842803,-520.41225916,0.00015469,2]
[334109485,1722775842813,-500.0,0.00015469,2]
[334109486,1722775842822,-500.0,0.00015469,2]
[334109487,1722775842831,-500.0,0.00015469,2]
[334109488,1722775842843,-500.0,0.00015469,2]
[334109489,1722775842855,-500.0,0.00015469,2]
[334109490,1722775842868,-500.0,0.00015469,2]
[334109491,1722775842880,-500.0,0.00015469,2]
[334109492,1722775842891,-500.0,0.00015469,2]
[334109493,1722775842904,-500.0,0.00015469,2]
[334109494,1722775842916,-500.0,0.00015469,2]
[334109495,1722775842926,-500.0,0.00015469,2]
[334109496,1722775842939,-500.0,0.00015469,2]
[334109497,1722775842949,-457.28403561,0.00015469,2]
[334109520,1722775843596,-42.71596439,0.00015469,2]
[334109521,1722775843606,-500.0,0.00015469,2]
[334109522,1722775843618,-337.61954809,0.00015469,2]
[334109523,1722775843631,-162.38045191,0.00015469,2]
[334109524,1722775843640,-585.45535077,0.00015469,2]
[334109525,1722775843651,-500.0,0.00015469,2]
[334109526,1722775843663,-42.27437709,0.00015469,2]
[334109562,1722775847106,-531.12445954,0.00015469,2]
[334109563,1722775847116,-441.04839971,0.00015469,2]
[334109564,1722775847127,-500.0,0.00015469,2]
[334109565,1722775847136,-500.0,0.00015469,2]
[334109566,1722775847145,-500.0,0.00015469,2]
[334109567,1722775847155,-500.0,0.00015469,2]
[334109568,1722775847164,-503.33143735,0.00015469,2]
[334109569,1722775847173,-500.0,0.00015469,2]
[334109570,1722775847183,-617.01819585,0.00015469,2]
[334109571,1722775847192,-500.0,0.00015469,2]
[334109572,1722775847201,-500.0,0.00015469,2]
[334109573,1722775847210,-500.0,0.00015469,2]
[334109574,1722775847220,-500.0,0.00015469,2]
[334109575,1722775847229,-500.0,0.00015469,2]
[334109576,1722775847238,-500.0,0.00015469,2]
[334109577,1722775847249,-506.41407044,0.00015469,2]
[334109578,1722775847260,-500.0,0.00015469,2]
[334109579,1722775847271,-500.0,0.00015469,2]
[334109580,1722775847280,-502.43460247,0.00015469,2]
[334109581,1722775847289,-500.0,0.00015469,2]
[334109582,1722775847299,-500.0,0.00015469,2]
[334109583,1722775847309,-500.0,0.00015469,2]
[334109584,1722775847321,-559.41918924,0.00015469,2]
[334109585,1722775847332,-500.0,0.00015469,2]
[334109586,1722775847341,-277.96222218,0.00015469,2]
[334109587,1722775847356,-222.03777782,0.00015469,2]
[334109588,1722775847368,-500.0,0.00015469,2]
[334109589,1722775847379,-500.0,0.00015469,2]
[334109590,1722775847389,-475.46222218,0.00015469,2]
[334109601,1722775860031,271.95561008,0.00012121,2]
[334109602,1722775863319,266.6760068,0.00012121,2]
[334109603,1722775868266,412.94081029,0.00012121,2]
[334109604,1722775869118,405.28182436,0.00012121,2]
[334109605,1722775871512,155.54138296,0.00012121,2]
[334109606,1722775873210,3785.54866294,0.00012121,2]
[334109607,1722775877447,200.0,0.00012121,2]
[334109608,1722775878315,154.74467129,0.00012121,2]
[334109609,1722775881322,218.30768663,0.00012121,2]
[334109610,1722775884345,13812.08995318,0.00012121,2]
[334109611,1722775887549,294.89922809,0.00012121,2]
[334109612,1722775893259,154.74467129,0.00012121,2]
[334109615,1722775953734,412.94081029,0.0001,2]
[334109617,1722775971823,266.6760068,0.0001,2]
[334109630,1722775986813,266.6760068,0.0001,2]
[334109634,1722776040834,379.56208168,0.0001,2]
[334109635,1722776061975,816.2198788,0.0001,2]
[334109636,1722776110475,750.23514786,0.00012121,2]
[334109648,1722776236708,603.79164827,9.999e-05,2]
[334109649,1722776264258,273.37336231,9.9e-05,2]
[334109650,1722776272080,273.37336231,9.9e-05,2]
[334109651,1722776280312,273.37336231,9.9e-05,2]
[334109653,1722776288334,273.37336231,9.9e-05,2]
[334109654,1722776291110,309.3349299,0.00012,2]
[334109655,1722776292121,154.74467129,0.00012,2]
[334109656,1722776293889,155.04963083,0.00012,2]
[334109657,1722776294540,156.95333335,0.00012,2]
[334109658,1722776294592,155.07383243,0.00012,2]
[334109659,1722776297210,155.9660416,9.9e-05,2]
[334109660,1722776301502,375.83395724,0.00012,2]
[334109661,1722776301639,154.97310152,0.00012,2]
[334109662,1722776301906,203.07210661,0.00012,2]
[334109663,1722776302367,5651.31154356,0.00012,2]
[334109664,1722776302690,413.91232311,0.00012,2]
[334109665,1722776303151,309.42214608,0.00012,2]
[334109666,1722776303183,287.79973101,0.00012,2]
[334109667,1722776304593,404.65460675,0.00012,2]
[334109668,1722776306205,2108.40472945,0.00012,2]
[334109669,1722776307913,4712.37284123,0.00012,2]
[334109670,1722776308393,188.2335741,0.00012,2]
[334109671,1722776309751,155.28055229,9.999e-05,2]
[334109672,1722776311892,1626.86783463,0.00012,2]
[334109673,1722776314612,542.94098629,9.999e-05,2]
[334109674,1722776315253,245.20303828,0.00012,2]
[334109675,1722776319581,942.61257937,9.999e-05,2]
[334109676,1722776319801,309.30406586,9.999e-05,2]
[334109677,1722776321991,154.74467129,0.00012,2]
[334109678,1722776323197,251.18806245,9.999e-05,2]
[334109679,1722776323276,159.24043179,9.999e-05,2]
[334109680,1722776325033,342.05014288,9.999e-05,2]
[334109681,1722776325063,309.30406586,9.999e-05,2]
[334109682,1722776326139,154.74467129,9.999e-05,2]
[334109683,1722776326645,568.56884199,9.999e-05,2]
[334109684,1722776326967,165.53506923,9.999e-05,2]
[334109685,1722776327367,260.82372856,9.999e-05,2]
[334109686,1722776327852,782.02729491,9.999e-05,2]
[334109687,1722776328697,506.48190828,9.999e-05,2]
[334109688,1722776329383,319.72766707,9.999e-05,2]
[334109689,1722776330079,601.6533504,9.999e-05,2]
[334109690,1722776330994,156.61103376,9.999e-05,2]
[334109691,1722776331566,154.84187764,9.999e-05,2]
[334109692,1722776332710,154.78801852,9.999e-05,2]
[334109693,1722776332766,437.55924529,9.999e-05,2]
[334109694,1722776332891,183.06078838,9.999e-05,2]
[334109695,1722776333255,227.90055105,9.9e-05,2]
[334109696,1722776334313,519.59956575,9.999e-05,2]
[334109697,1722776334774,201.42471188,9.999e-05,2]
[334109698,1722776335922,426.89711274,9.999e-05,2]
[334109699,1722776336399,522.06567766,9.999e-05,2]
[334109700,1722776336605,192.371293,9.999e-05,2]
[334109701,1722776336776,159.67251329,9.999e-05,2]
[334109702,1722776338687,205.1880395,9.999e-05,2]
[334109703,1722776339232,154.75929853,9.999e-05,2]
[334109704,1722776339959,154.83022704,9.999e-05,2]
[334109705,1722776340587,533.92328189,9.999e-05,2]
[334109706,1722776341059,154.82193315,0.00012,2]
[334109707,1722776341336,180.43272034,9.999e-05,2]
[334109708,1722776341506,154.74467129,9.999e-05,2]
[334109709,1722776341537,155.66299177,9.999e-05,2]
[334109710,1722776341567,309.31949788,9.999e-05,2]
[334109711,1722776341598,849.3304683,9.999e-05,2]
[334109712,1722776341731,309.36559673,9.999e-05,2]
[334109713,1722776341905,155.01250218,9.999e-05,2]
[334109714,1722776342313,440.8199079,9.9e-05,2]
[334109715,1722776342823,533.23598085,9.999e-05,2]
[334109716,1722776342979,665.17930419,9.999e-05,2]
[334109717,1722776343387,241.128892,9.999e-05,2]
[334109718,1722776343505,433.28919733,9.999e-05,2]
[334109719,1722776344361,728.57899177,9.999e-05,2]
[334109720,1722776344735,413.77152883,0.00012,2]
[334109721,1722776345477,154.75138541,9.999e-05,2]
[334109722,1722776345952,154.80808241,9.999e-05,2]
[334109723,1722776346193,185.70340091,9.999e-05,2]
[334109724,1722776347419,157.76489495,9.999e-05,2]
[334109725,1722776347541,155.04058565,9.999e-05,2]
[334109726,1722776347589,156.71892504,9.999e-05,2]
[334109727,1722776348147,154.81926193,0.0001212,2]
[334109728,1722776348341,163.02554165,9.999e-05,2]
[334109729,1722776348706,220.2660649,9.999e-05,2]
[334109730,1722776348737,286.25130034,9.999e-05,2]
[334109731,1722776350081,200.0,9.999e-05,2]
[334109732,1722776350116,288.50805677,9.999e-05,2]
[334109733,1722776350697,154.93824139,9.999e-05,2]
[334109734,1722776351110,303.6443583,9.999e-05,2]
[334109735,1722776359402,319.72766707,9.999e-05,2]
[334109736,1722776359535,309.30406586,0.0001212,2]
[334109738,1722776361443,156.77873769,9.999e-05,2]
[334109739,1722776362666,242.20157419,0.0001212,2]
[334109740,1722776363314,159.71520453,0.0001212,2]
[334109741,1722776363746,3607.53129253,9.999e-05,2]
[334109742,1722776364088,373.96792038,0.0001212,2]
[334109743,1722776364151,290.31500293,9.999e-05,2]
[334109744,1722776364191,309.42755902,9.999e-05,2]
[334109745,1722776366494,156.61103376,0.0001212,2]
[334109746,1722776366947,309.42755902,0.0001212,2]
[334109747,1722776371219,12496.81139471,9.999e-05,2]
[334109748,1722776371260,3790.20843305,9.999e-05,2]
[334109751,1722776428699,336.86371415,9.999e-05,2]
[334109752,1722776434240,507.96544582,9.999e-05,2]
[334109753,1722776435038,342.49735544,9.999e-05,2]
[334109754,1722776435522,155.06124344,9.999e-05,2]
[334109755,1722776435982,165.53506923,9.999e-05,2]
[334109756,1722776437167,568.37639756,9.999e-05,2]
[334109757,1722776449502,155.66931847,9.999e-05,2]
[334109758,1722776454569,533.7425549,9.999e-05,2]
[334109759,1722776464239,519.42434613,9.999e-05,2]
[334109760,1722776476046,156.54540107,9.999e-05,2]
[334109761,1722776506887,188.2028253,9.999e-05,2]
[334109762,1722776535995,165.46581717,9.999e-05,2]
[334109763,1722776751186,-400.528698,0.00013699,2]
[334109764,1722776751209,-185.0279105,0.0001373,2]
[334109765,1722776751231,-500.786562,0.00013758,2]
[334109766,1722776751253,-243.71103988,0.00014247,2]
[334109767,1722776833145,-275.41406212,0.00014247,2]
[334109768,1722776833168,-1091.57771247,0.0001469,2]
[334109769,1722776833192,-145.84126876,0.0001469,2]
[334109770,1722776843095,-8.91885305,0.0001469,2]
[334109771,1722776843117,-269.66609186,0.0001469,2]
[334109772,1722776843141,-335.6564105,0.0001469,2]
[334109773,1722776843162,-194.5599409,0.0001469,2]
[334109774,1722776843186,-300.0,0.0001469,2]
[334109775,1722776843210,-300.0,0.0001469,2]
[334109776,1722776843232,-350.60662428,0.00014691,2]
[334109786,1722776961102,-3000.0,0.00013931,2]
[334109897,1722777038681,-162.639807,0.00014247,2]
[334109898,1722777038690,-776.6990318,0.00014591,2]
[334109899,1722777039417,-1666.85309965,0.00014591,2]
[334109928,1722777040920,-1439.47562926,0.00014591,2]
[334109929,1722777040930,-209.0,0.0001469,2]
[334109930,1722777040939,-500.0,0.00014691,2]
[334109931,1722777040949,-500.0,0.00014691,2]
[334109932,1722777040958,-500.0,0.00014691,2]
[334109933,1722777040967,-500.0,0.00014691,2]
[334109934,1722777040976,-500.0,0.00014691,2]
[334109935,1722777040985,-500.0,0.00014691,2]
[334109936,1722777040995,-500.0,0.00014691,2]
[334109937,1722777041004,-500.0,0.00014691,2]
[334109938,1722777041014,-500.0,0.00014691,2]
[334109939,1722777041024,-255.14315066,0.00014691,2]
[334109943,1722777041159,-500.0,0.00014691,2]
[334109944,1722777041169,-500.0,0.00014691,2]
[334109945,1722777041178,-500.0,0.00014691,2]
[334109946,1722777041187,-500.0,0.00014691,2]
[334109947,1722777041196,-500.0,0.00014691,2]
[334109948,1722777041206,-500.0,0.00014691,2]
[334109949,1722777041214,-500.0,0.00014691,2]
[334109950,1722777041223,-500.0,0.00014691,2]
[334109951,1722777041233,-500.0,0.00014691,2]
[334109952,1722777041242,-500.0,0.00014691,2]
[334109953,1722777041251,-500.0,0.00014691,2]
[334109954,1722777041260,-500.0,0.00014691,2]
[334109955,1722777041270,-539.82,0.00014691,2]
[334109956,1722777041279,-500.0,0.00014691,2]
[334109957,1722777041288,-500.0,0.00014691,2]
[334109958,1722777041297,-500.0,0.00014691,2]
[334109959,1722777041306,-500.0,0.00014691,2]
[334109960,1722777041316,-500.0,0.00014691,2]
[334109961,1722777041325,-500.0,0.00014691,2]
[334109962,1722777041334,-277.39965712,0.00014691,2]
[334109963,1722777041343,-500.0,0.00014691,2]
[334109964,1722777041352,-500.0,0.00014691,2]
[334109965,1722777041362,-500.0,0.00014691,2]
[334109966,1722777041372,-500.0,0.00014691,2]
[334109967,1722777041382,-520.58242441,0.00014691,2]
[334109968,1722777041391,-500.0,0.00014691,2]
[334109969,1722777041401,-506.39755018,0.00014691,2]
[334109970,1722777041411,-500.0,0.00014691,2]
[334109971,1722777041421,-582.34,0.00014691,2]
[334109972,1722777041431,-500.0,0.00014691,2]
[334109973,1722777041441,-500.0,0.00014691,2]
[334109974,1722777041450,-501.81596992,0.00014691,2]
[334109975,1722777041461,-500.0,0.00014691,2]
[334109976,1722777041470,-511.06721115,0.00014691,2]
[334109977,1722777041479,-506.43463454,0.00014691,2]
[334109978,1722777041488,-500.0,0.00014691,2]
[334109979,1722777041498,-226.31575498,0.00014691,2]
[334109980,1722777041507,-500.0,0.00014691,2]
[334109981,1722777041518,-528.8046099,0.00014691,2]
[334109982,1722777041527,-506.0252108,0.00014691,2]
[334109983,1722777041536,-500.0,0.00014691,2]
[334109984,1722777041545,-500.0,0.00014691,2]
[334109985,1722777041555,-500.0,0.00014691,2]
[334109986,1722777041564,-500.0,0.00014691,2]
[334109987,1722777041573,-509.02547828,0.00014691,2]
[334109988,1722777041583,-500.0,0.00014691,2]
[334109989,1722777041592,-500.0,0.00014691,2]
[334109990,1722777041602,-500.0,0.00014691,2]
[334109991,1722777041611,-500.0,0.00014691,2]
[334109992,1722777041620,-500.0,0.00014691,2]
[334109993,1722777041630,-500.0,0.00014691,2]
[334109994,1722777041639,-226.45757065,0.00014691,2]
[334109995,1722777041648,-500.0,0.00014691,2]
[334109996,1722777041657,-500.0,0.00014691,2]
[334109997,1722777041666,-303.59071256,0.00014691,2]
[334109998,1722777041675,-500.0,0.00014691,2]
[334109999,1722777041685,-500.0,0.00014691,2]
[334110000,1722777041694,-500.0,0.00014691,2]
[334110001,1722777041703,-500.0,0.00014691,2]
[334110002,1722777041712,-500.0,0.00014691,2]
[334110003,1722777041721,-503.67083284,0.00014691,2]
[334110004,1722777041730,-500.0,0.00014691,2]
[334110005,1722777041739,-500.0,0.00014691,2]
[334110006,1722777041748,-500.0,0.00014691,2]
[334110007,1722777041757,-500.0,0.00014691,2]
[334110008,1722777041766,-500.0,0.00014691,2]
[334110009,1722777041776,-500.0,0.00014691,2]
[334110010,1722777041785,-500.0,0.00014691,2]
[334110011,1722777041794,-500.0,0.00014691,2]
[334110012,1722777041803,-500.0,0.00014691,2]
[334110013,1722777041813,-500.0,0.00014691,2]
[334110014,1722777041822,-520.41225916,0.00014691,2]
[334110015,1722777041832,-500.0,0.00014691,2]
[334110016,1722777041842,-500.0,0.00014691,2]
[334110017,1722777041851,-500.0,0.00014691,2]
[334110018,1722777041860,-500.0,0.00014691,2]
[334110019,1722777041870,-500.0,0.00014691,2]
[334110020,1722777041880,-200.0,0.00014795,2]
[334110021,1722777041889,-500.0,0.00014964,2]
[334110022,1722777041899,-4520.78,0.00014964,2]
[334110023,1722777041908,-2396.34,0.00014964,2]
[334110024,1722777041917,-500.0,0.00014964,2]
[334110025,1722777041927,-500.0,0.00014964,2]
[334110026,1722777041936,-500.0,0.00014964,2]
[334110027,1722777041945,-500.0,0.00014965,2]
[334110028,1722777041954,-500.0,0.00014965,2]
[334110029,1722777041963,-500.0,0.00014965,2]
[334110030,1722777041973,-500.0,0.00014965,2]
[334110031,1722777041982,-647.36847481,0.00014965,2]
[334110032,1722777041991,-500.0,0.00014965,2]
[334110033,1722777042000,-224.65114976,0.00014965,2]
[334110034,1722777042010,-505.53425985,0.00014965,2]
[334110035,1722777042019,-500.0,0.00014965,2]
[334110036,1722777042028,-500.0,0.00014965,2]
[334110037,1722777042037,-500.0,0.00014965,2]
[334110038,1722777042046,-516.82725683,0.00014965,2]
[334110039,1722777042056,-362.94441921,0.00014965,2]
[334110040,1722777042065,-500.0,0.00014965,2]
[334110041,1722777042075,-500.0,0.00014965,2]
[334110042,1722777042087,-500.0,0.00014965,2]
[334110043,1722777042096,-500.0,0.00014965,2]
[334110044,1722777042107,-500.0,0.00014965,2]
[334110045,1722777042117,-500.0,0.00014965,2]
[334110046,1722777042128,-500.0,0.00014965,2]
[334110047,1722777042137,-500.0,0.00014965,2]
[334110048,1722777042146,-500.0,0.00014965,2]
[334110049,1722777042158,-500.0,0.00014965,2]
[334110050,1722777042168,-500.0,0.00014965,2]
[334110051,1722777042177,-500.0,0.00014965,2]
[334110052,1722777042186,-500.0,0.00014965,2]
[334110053,1722777042195,-281.82390913,0.00014965,2]
[334110054,1722777042204,-500.0,0.00014965,2]
[334110055,1722777042215,-500.0,0.00014965,2]
[334110056,1722777042224,-500.0,0.00014965,2]
[334110057,1722777042234,-500.0,0.00014965,2]
[334110058,1722777042243,-500.0,0.00014965,2]
[334110059,1722777042252,-500.0,0.00014965,2]
[334110060,1722777042261,-522.41519007,0.00014965,2]
[334110061,1722777042270,-500.0,0.00014965,2]
[334110062,1722777042280,-500.0,0.00014965,2]
[334110063,1722777042289,-500.0,0.00014965,2]
[334110064,1722777042298,-500.0,0.00014965,2]
[334110065,1722777042307,-526.43611433,0.00014965,2]
[334110066,1722777042316,-506.72861638,0.00014965,2]
[334110067,1722777042325,-262.04439463,0.00014965,2]
[334110068,1722777042334,-500.0,0.00014965,2]
[334110069,1722777042343,-500.0,0.00014965,2]
[334110070,1722777042352,-500.0,0.00014965,2]
[334110071,1722777042363,-500.0,0.00014965,2]
[334110072,1722777042373,-503.39811253,0.00014965,2]
[334110073,1722777042383,-500.0,0.00014965,2]
[334110074,1722777042393,-500.0,0.00014965,2]
[334110075,1722777042402,-500.0,0.00014965,2]
[334110076,1722777042412,-500.0,0.00014965,2]
[334110077,1722777042420,-500.0,0.00014965,2]
[334110078,1722777042430,-500.0,0.00014965,2]
[334110079,1722777042439,-500.0,0.00014965,2]
[334110080,1722777042449,-500.0,0.00014965,2]
[334110081,1722777042458,-500.0,0.00014965,2]
[334110082,1722777042467,-500.0,0.00014965,2]
[334110083,1722777042476,-500.0,0.00014965,2]
[334110084,1722777042486,-3665.63770649,0.00015,2]
[334110085,1722777042496,-2527.85099872,0.00015,2]
[334110086,1722777042505,-492.40339763,0.00015,2]
[334110087,1722777042515,-347.77955978,0.00015,4]
[334110088,1722777042524,-152.99335601,0.00015091,2]
[334110089,1722777042533,-367.88690048,0.00015177,2]
[334110090,1722777042542,-5200.97159572,0.00015192,2]
[334110091,1722777042551,-500.0,0.00015238,2]
[334110092,1722777042560,-4520.78,0.00015238,2]
[334110093,1722777042569,-2396.34,0.00015238,2]
[334110094,1722777042578,-500.0,0.00015238,2]
[334110095,1722777042588,-500.0,0.00015238,2]